bitfinex-derivatives/quotes_ETHF0:USTF0_20250816
["timestamp","ask_amount","ask_price","bid_price","bid_amount"]
[1755375653888,1.65465913,4434.6,4434.5,21.9983]
[1755375654090,1.41345913,4434.6,4434.5,21.9983]
[1755375655198,1.65465913,4434.6,4434.5,21.9983]
[1755375655794,1.41345913,4434.6,4434.5,21.9983]
[1755375656498,1.65465913,4434.6,4434.5,21.9983]
[1755375656695,1.4601,4434.6,4434.5,21.9983]
[1755375657396,0.9739,4433.8,4433.7,0.4362]
[1755375657594,0.8615,4433.4,4432.9,3.2078]
[1755375657900,1.2189,4433.4,4433.3,0.4362]
[1755375658100,1.2189,4433.4,4433.3,20.9562]
[1755375658401,1.4601,4433.4,4433.3,21.2045]
[1755375658703,1.4601,4433.4,4433.3,21.2075]
[1755375659199,1.46451806,4433.4,4433.3,20.9592]
[1755375659601,1.46451806,4433.4,4433.3,21.2075]
[1755375659901,1.46451806,4433.4,4433.3,21.6366]
[1755375660403,1.4601,4433.0,4432.9,3.2078]
[1755375660695,1.4601,4433.0,4432.9,23.7288]
[1755375660902,1.4601,4433.0,4432.9,20.521]
[1755375661298,0.5986,4433.0,4432.9,20.525]
[1755375661896,1.4601,4433.0,4432.9,20.525]
[1755375662107,1.2189,4432.4,4432.3,0.1766]
[1755375662296,1.4601,4432.4,4432.3,20.525]
[1755375662497,0.0225,4432.6,4431.9,0.2596]
[1755375662697,1.4601,4432.0,4431.9,20.53]
[1755375663194,0.4862,4431.9,4431.8,3.2078]
[1755375663397,0.4862,4431.9,4431.5,0.2483]
[1755375663398,1.4601,4431.5,4431.4,0.8653]
[1755375663700,1.4601,4431.5,4431.4,21.3943]
[1755375663902,1.4601,4431.5,4431.4,22.0063]
[1755375664501,1.4601,4431.5,4431.4,1.4773]
[1755375664702,1.4601,4431.5,4431.4,21.3963]
[1755375665293,1.4601,4431.5,4431.4,0.8653]
[1755375665603,1.4601,4431.5,4431.4,20.531]
[1755375667105,1.4601,4431.2,4431.1,0.10155377]
[1755375667902,1.4601,4431.2,4431.1,0.36115377]
[1755375668098,1.4601,4431.2,4431.1,0.10155377]
[1755375672906,1.4601,4431.2,4431.1,0.36115377]
[1755375673506,1.4601,4431.2,4431.1,0.10155377]
[1755375680605,3.2078,4431.4,4431.1,0.47665377]
[1755375680805,1.4721,4431.3,4431.2,1.4888]
[1755375681400,1.4721,4431.3,4431.1,0.10155377]
[1755375681610,1.4721,4431.2,4431.1,0.10155377]
[1755375681911,1.4721,4431.2,4431.1,0.53085377]
[1755375682108,1.4721,4431.2,4431.1,1.21525377]
[1755375682312,1.4721,4431.2,4431.1,1.59035377]
[1755375683205,0.4078,4431.2,4431.1,1.59035377]
[1755375683405,1.0612,4431.2,4431.1,1.59035377]
[1755375683610,1.2288,4431.2,4431.1,1.59035377]
[1755375684600,3.2078,4431.4,4431.2,0.6371]
[1755375684807,3.2078,4431.4,4431.3,1.4888]
[1755375685311,4.4366,4431.4,4431.3,1.4888]
[1755375686709,4.62998246,4431.4,4431.3,1.4888]
[1755375686911,4.87328246,4431.4,4431.3,1.4888]
[1755375687312,4.62998246,4431.4,4431.3,1.4888]
[1755375689012,1.42218246,4431.4,4431.3,1.4888]
[1755375689310,0.19338246,4431.4,4431.3,1.4888]
[1755375690610,3.2078,4431.9,4431.3,0.6014]
[1755375690807,3.2078,4431.9,4431.8,0.6014]
[1755375691008,3.2078,4431.9,4431.8,1.4888]
[1755375691414,3.7832,4431.9,4431.8,1.4888]
[1755375691719,4.6799,4431.9,4431.8,1.4888]
[1755375692117,1.4721,4431.9,4431.8,1.4888]
[1755375692323,0.4078,4431.9,4431.8,1.4888]
[1755375692915,1.4721,4431.9,4431.8,1.4888]
[1755375693717,1.4721,4431.9,4431.8,0.6014]
[1755375693920,1.4721,4431.9,4431.8,1.4888]
[1755375695123,1.215,4431.9,4431.8,1.4888]
[1755375695719,1.4721,4431.9,4431.8,1.4888]
[1755375701627,0.5754,4431.9,4431.8,1.4888]
[1755375702724,1.4721,4431.9,4431.8,1.4888]
[1755375710438,3.8182,4432.4,4431.8,1.4652]
[1755375710638,0.55378996,4432.3,4432.2,1.4446]
[1755375710832,3.2078,4432.4,4432.2,1.4446]
[1755375711032,3.2078,4432.4,4432.3,1.4446]
[1755375711227,3.2078,4433.0,4432.9,1.4446]
[1755375711433,0.00441806,4433.4,4432.9,1.4446]
[1755375711630,1.037,4433.3,4433.2,0.5808]
[1755375711838,0.00441806,4433.4,4433.3,1.4446]
[1755375713533,0.2642,4434.7,4433.3,4.4671]
[1755375713731,1.58291705,4434.6,4434.5,1.2038]
[1755375713935,1.0303,4434.6,4434.5,1.2038]
[1755375714137,1.4565,4434.6,4434.5,1.4446]
[1755375715834,0.1624,4433.9,4433.8,1.4446]
[1755375716137,0.8746,4434.1,4433.9,0.2408]
[1755375716337,0.2498,4434.4,4434.0,1.0624]
[1755375716543,1.1923,4434.3,4434.2,0.5808]
[1755375716733,1.4565,4434.3,4434.2,1.4446]
[1755375718431,0.9425,4434.3,4434.2,1.4446]
[1755375718633,3.472,4434.6,4433.7,3.2078]
[1755375718634,0.9425,4434.8,4434.7,0.5808]
[1755375718837,0.8746,4434.7,4433.8,0.8638]
[1755375719038,1.4565,4433.9,4433.8,1.4446]
[1755375721037,1.1923,4433.9,4433.8,1.4446]
[1755375721245,0.6181,4433.9,4433.8,1.4446]
[1755375721541,0.4266,4434.2,4434.1,0.5808]
[1755375721841,0.4266,4434.2,4434.1,1.4446]
[1755375722144,1.4565,4434.2,4434.1,1.4446]
[1755375724149,0.9425,4434.2,4434.1,1.4446]
[1755375724648,0.1624,4434.5,4434.4,1.4446]
[1755375724844,1.4565,4434.5,4434.4,1.4446]
[1755375725846,3.2078,4434.7,4434.4,1.4446]
[1755375726146,4.6643,4434.7,4434.6,1.4446]
[1755375726547,1.4565,4434.7,4434.6,1.4446]
[1755375732545,0.1624,4434.7,4434.6,1.4446]
[1755375732741,1.4565,4434.7,4434.6,1.4446]
[1755375733046,1.4565,4435.2,4435.1,1.4446]
[1755375733942,1.1923,4435.2,4435.1,0.5808]
[1755375734137,3.2078,4435.3,4435.1,1.4446]
[1755375734340,1.4818,4435.3,4435.2,0.8216]
[1755375734550,0.8746,4437.1,4435.3,0.1072]
[1755375734845,1.4565,4436.4,4436.3,0.1072]
[1755375735142,1.4565,4436.3,4436.2,3.2078]
[1755375735348,0.2498,4436.2,4435.4,3.2078]
[1755375735536,0.0225,4436.7,4435.5,0.2692]
[1755375735537,0.1624,4435.6,4435.5,0.2692]
[1755375735850,1.4565,4435.6,4435.5,0.2692]
[1755375736549,1.0959,4435.6,4435.5,0.2692]
[1755375736953,1.4565,4435.6,4435.5,0.2692]
[1755375737545,1.4565,4435.6,4435.5,0.162]
[1755375737744,1.4565,4435.6,4435.4,3.2078]
[1755375737745,0.5819,4435.6,4435.4,3.2078]
[1755375737946,1.4565,4435.5,4435.4,3.2078]
[1755375738146,1.4565,4435.5,4435.4,3.3698]
[1755375738347,1.4565,4435.5,4435.4,3.477]
[1755375738746,0.878,4436.6,4435.4,3.477]
[1755375738943,0.859,4436.0,4435.9,3.4759]
[1755375739248,0.2578,4436.0,4435.9,3.4759]
[1755375740048,0.2593,4436.4,4435.9,3.369]
[1755375740248,0.2578,4436.2,4436.1,0.1612]
[1755375740457,0.2578,4436.2,4436.1,0.2681]
[1755375741856,0.5171,4436.2,4436.1,0.2681]
[1755375742353,0.6938,4436.2,4436.1,0.2681]
[1755375742548,0.2578,4436.2,4436.1,0.2681]
[1755375742748,0.4345,4436.6,4436.5,0.1612]
[1755375742948,0.5155,4437.1,4436.6,0.1069]
[1755375743155,1.4777,4437.1,4437.0,3.4759]
[1755375743355,1.1168,4437.1,4437.0,3.4759]
[1755375743857,0.95,4437.1,4437.0,3.4759]
[1755375744045,0.45850459,4437.1,4437.0,3.4759]
[1755375744558,0.2578,4437.1,4437.0,3.4759]
[1755375744752,0.2593,4437.5,4437.0,3.4759]
[1755375744950,0.2578,4437.4,4437.3,0.2681]
[1755375745153,0.7938,4438.0,4437.3,0.1612]
[1755375745348,0.7938,4438.0,4437.5,0.2681]
[1755375745349,0.2578,4437.6,4437.5,0.2681]
[1755375745556,0.6938,4437.6,4437.5,3.4759]
[1755375745856,1.4777,4437.6,4437.5,3.4759]
[1755375747051,1.68176408,4437.6,4437.5,3.2078]
[1755375747357,1.4777,4437.1,4437.0,3.2078]
[1755375747559,1.68176408,4437.1,4437.0,3.2078]
[1755375748050,1.68176408,4437.1,4437.0,3.369]
[1755375748250,1.68176408,4437.1,4437.0,3.4759]
[1755375748758,1.68176408,4437.1,4437.0,3.2078]
[1755375749153,1.68176408,4437.1,4437.0,3.4759]
[1755375749354,0.2578,4437.5,4437.0,3.4759]
[1755375749553,0.2578,4437.3,4437.2,0.1612]
[1755375749747,0.2578,4437.3,4437.2,0.2681]
[1755375751659,1.4777,4437.3,4437.2,0.2681]
[1755375752253,1.0516,4437.3,4437.2,0.2681]
[1755375752454,1.3109,4437.3,4437.2,0.2681]
[1755375752954,1.4777,4437.3,4437.2,0.2681]
[1755375754054,0.2578,4437.3,4437.2,0.2681]
[1755375755061,0.6938,4437.3,4437.2,0.2681]
[1755375755262,0.95,4437.3,4437.2,0.2681]
[1755375755860,0.6907,4437.3,4437.2,0.2681]
[1755375756064,0.95,4437.3,4437.2,0.2681]
[1755375757357,1.4777,4437.3,4437.2,0.2681]
[1755375757759,1.4777,4437.3,4437.0,3.2078]
[1755375757961,1.4777,4437.1,4437.0,3.2078]
[1755375758664,1.4777,4437.1,4437.0,3.4759]
[1755375759168,1.1168,4437.1,4437.0,3.4759]
[1755375759361,1.4777,4437.1,4437.0,3.4759]
[1755375759562,1.4777,4437.1,4437.0,3.369]
[1755375759963,1.4777,4437.1,4437.0,3.2078]
[1755375762159,1.68225317,4437.1,4437.0,3.2078]
[1755375763569,1.68241197,4437.1,4437.0,3.2078]
[1755375765273,2.23476392,4437.1,4437.0,3.2078]
[1755375766366,2.23506304,4437.1,4437.0,3.2078]
[1755375768070,2.23506304,4437.1,4437.0,2.5435]
[1755375768268,0.878,4437.0,4436.5,3.2078]
[1755375768467,0.5997,4436.6,4436.5,3.2078]
[1755375768672,2.23506304,4436.6,4436.5,3.2078]
[1755375770065,2.23506304,4436.6,4436.5,3.3709]
[1755375770264,1.61646304,4436.6,4436.5,4.5154]
[1755375770473,0.20501109,4436.6,4436.5,4.5154]
[1755375770670,0.44421109,4436.8,4436.5,4.1579]
[1755375770876,1.4643,4436.6,4436.5,3.7809]
[1755375771176,2.22320641,4436.6,4436.5,3.2078]
[1755375771572,0.5952,4436.1,4436.0,3.2078]
[1755375771869,0.75890641,4436.1,4436.0,4.2639]
[1755375772075,0.75890641,4436.1,4436.0,4.5372]
[1755375772076,0.20501109,4436.1,4436.0,4.5372]
[1755375772268,0.2595,4436.8,4436.1,0.7338]
[1755375772576,1.4643,4436.8,4436.7,4.2639]
[1755375772772,2.22495229,4436.8,4436.7,4.2639]
[1755375772972,1.66970344,4436.8,4436.7,4.5147]
[1755375773367,0.20540344,4436.8,4436.7,4.1804]
[1755375773678,0.20540344,4436.8,4436.7,4.5372]
[1755375773876,0.20540344,4436.8,4436.7,3.2078]
[1755375773877,0.55710344,4436.8,4436.7,3.2078]
[1755375774076,1.66970344,4436.8,4436.7,3.9918]
[1755375774371,1.66970344,4436.8,4436.7,4.2639]
[1755375774578,1.66970344,4436.8,4436.7,4.5147]
[1755375774773,1.29930344,4436.8,4436.7,4.5147]
[1755375774967,0.44460344,4436.8,4436.7,4.5147]
[1755375775380,1.66970344,4436.8,4436.7,4.2639]
[1755375776379,1.29930344,4436.8,4436.7,4.2639]
[1755375776580,1.29930344,4436.8,4436.7,4.5147]
[1755375776879,1.66970344,4436.8,4436.7,4.5147]
[1755375777579,1.66970344,4436.8,4436.7,3.7479]
[1755375778075,1.67049955,4436.8,4436.7,3.3709]
[1755375778282,1.67049955,4436.8,4436.7,3.2078]
[1755375778878,1.67049955,4436.8,4436.7,3.9918]
[1755375779277,0.70489955,4436.8,4436.7,3.9918]
[1755375779481,1.67049955,4436.8,4436.7,4.2639]
[1755375779684,1.67049955,4436.8,4436.7,4.1579]
[1755375779880,1.67049955,4436.8,4436.7,0.9501]
[1755375780279,1.67049955,4436.8,4436.7,4.1579]
[1755375780983,1.67049955,4436.8,4436.7,3.2078]
[1755375781486,0.80139955,4436.8,4436.2,3.2078]
[1755375781692,1.4643,4436.3,4436.2,3.2078]
[1755375781995,1.67049955,4436.3,4436.2,3.2078]
[1755375782289,1.67049955,4436.3,4436.2,4.1579]
[1755375782290,1.30009955,4436.3,4436.2,4.1579]
[1755375782489,0.87989955,4436.3,4436.2,4.5147]
[1755375782985,0.20619955,4436.3,4436.2,4.5147]
[1755375783292,0.4987,4436.4,4436.3,1.3069]
[1755375783487,0.70488426,4436.4,4436.3,1.3069]
[1755375783686,0.8691,4436.3,4436.2,3.2078]
[1755375783893,1.67048436,4436.3,4436.2,3.2078]
[1755375784587,0.5952,4435.7,4435.6,3.2078]
[1755375784787,1.67048436,4435.7,4435.6,3.2078]
[1755375785288,1.4643,4435.0,4434.9,3.6148]
[1755375785485,1.4643,4435.0,4434.9,4.1579]
[1755375785686,1.0939,4435.0,4434.9,4.5147]
[1755375785897,0.2392,4435.3,4435.2,0.5731]
[1755375786093,0.44534751,4435.3,4435.2,1.3069]
[1755375786486,0.87984751,4435.3,4435.2,1.3069]
[1755375786687,1.05654751,4435.3,4435.2,1.3069]
[1755375786986,0.20614751,4435.3,4435.2,1.3069]
[1755375787192,0.4987,4435.7,4435.6,1.0561]
[1755375787493,0.70470592,4435.7,4435.6,1.3069]
[1755375788083,0.20600592,4435.7,4435.4,3.2078]
[1755375788283,1.4643,4435.5,4435.4,3.2078]
[1755375788489,1.67030592,4435.5,4435.4,3.2078]
[1755375788684,0.5952,4435.0,4434.9,23.9718]
[1755375788893,1.67030592,4435.0,4434.9,23.9718]
[1755375789094,1.67032934,4435.0,4434.9,23.9718]
[1755375790395,1.4643,4435.0,4434.9,23.9718]
[1755375790797,1.4643,4435.0,4434.9,25.0279]
[1755375791590,1.4643,4435.0,4434.9,24.7558]
[1755375793199,1.4643,4435.0,4434.9,25.0279]
[1755375794496,1.4643,4435.0,4434.9,23.9718]
[1755375795195,1.4643,4435.0,4434.9,24.9219]
[1755375795396,0.8504,4435.0,4434.9,25.0279]
[1755375795591,0.8504,4435.0,4434.9,25.2787]
[1755375796094,1.4643,4435.0,4434.9,24.9219]
[1755375798194,0.8504,4435.0,4434.9,25.2787]
[1755375799097,1.0939,4435.0,4434.9,25.2787]
[1755375799300,1.4817,4435.0,4434.9,25.2787]
[1755375799602,1.4817,4435.0,4434.9,25.0279]
[1755375801294,1.4817,4435.0,4434.9,3.8287]
[1755375801600,0.5849,4434.4,4434.3,3.2078]
[1755375801802,1.4663,4434.4,4434.3,23.9458]
[1755375802803,1.4663,4434.4,4434.3,24.507]
[1755375803298,0.8814,4434.9,4434.3,24.1146]
[1755375803495,1.4663,4434.4,4434.3,25.035]
[1755375803696,1.4663,4434.4,4434.3,24.9293]
[1755375804403,1.4663,4434.4,4434.3,23.9458]
[1755375804998,1.4663,4434.4,4434.3,3.2078]
[1755375805201,1.67205647,4434.4,4434.3,3.2078]
[1755375806499,1.67205339,4434.4,4434.3,3.2078]
[1755375808204,1.67205339,4434.4,4434.3,4.0267]
[1755375809503,0.20575339,4434.4,4434.3,4.1913]
[1755375809707,0.69935339,4434.4,4434.3,4.5358]
[1755375809907,1.02815339,4434.4,4434.3,4.5358]
[1755375810106,1.67205339,4434.4,4434.3,4.5358]
[1755375810901,1.67205339,4434.4,4434.3,4.1913]
[1755375811603,1.67205339,4434.4,4434.3,4.297]
[1755375814207,1.67205339,4434.4,4434.3,4.5358]
[1755375815107,0.20575339,4434.4,4434.3,4.5358]
[1755375815306,0.44715339,4434.4,4434.3,4.5358]
[1755375815506,0.69935339,4434.4,4434.3,4.5358]
[1755375818909,0.20575339,4434.4,4434.3,4.5358]
[1755375819806,0.44715339,4434.4,4434.3,4.5358]
[1755375820514,0.20575339,4434.4,4434.3,4.5358]
[1755375821416,0.44715339,4434.4,4434.3,4.5358]
[1755375821615,0.69935339,4434.4,4434.3,4.5358]
[1755375822413,0.86265339,4434.4,4434.3,3.2078]
[1755375822619,1.67205339,4434.4,4434.3,4.297]
[1755375823320,1.67205339,4434.4,4434.3,4.1913]
[1755375823621,1.67205339,4434.4,4434.3,4.297]
[1755375823813,0.44715339,4434.4,4434.3,4.5358]
[1755375824012,0.69935339,4434.4,4434.3,4.5358]
[1755375824523,0.20575339,4434.4,4434.3,4.5358]
[1755375824724,0.2414,4435.1,4434.3,3.7989]
[1755375825018,0.86808714,4435.0,4434.9,4.5358]
[1755375825429,1.03138714,4435.0,4434.9,4.5358]
[1755375825721,1.28748714,4435.0,4434.9,4.5358]
[1755375825923,1.67528714,4435.0,4434.9,4.5358]
[1755375827920,0.20898714,4435.0,4434.9,4.5358]
[1755375828225,0.4936,4435.3,4434.9,4.5358]
[1755375828421,0.20898444,4435.2,4435.1,0.5911]
[1755375828621,0.45038444,4435.2,4435.1,1.328]
[1755375829125,0.20898444,4435.2,4435.1,1.328]
[1755375829323,0.6851,4435.5,4435.4,0.5891]
[1755375829523,1.29642151,4435.5,4435.4,4.5493]
[1755375829723,1.67942151,4435.5,4435.4,4.5493]
[1755375832019,1.67942151,4435.5,4435.4,4.2936]
[1755375832214,1.67942151,4435.5,4435.4,3.6345]
[1755375832420,1.67942151,4435.5,4435.4,3.2078]
[1755375833128,1.67942151,4435.5,4435.4,3.5979]
[1755375836524,1.67942151,4435.5,4435.4,3.7654]
[1755375837631,1.67942151,4435.5,4435.4,4.0246]
[1755375837835,1.67942151,4435.5,4435.4,3.2078]
[1755375839933,1.67942151,4435.5,4435.4,3.7654]
[1755375840236,1.67942151,4435.5,4435.4,4.0246]
[1755375841031,1.4705,4435.5,4435.4,4.0246]
[1755375841233,1.67925149,4435.5,4435.4,4.0246]
[1755375841529,1.67925689,4435.5,4435.4,4.0246]
[1755375842335,1.67925689,4435.5,4435.4,4.2936]
[1755375842534,1.67925689,4435.5,4435.4,3.2078]
[1755375842734,1.67926,4435.5,4435.4,3.2078]
[1755375843631,1.67926,4435.5,4434.8,3.2078]
[1755375843937,1.4705,4434.9,4434.8,3.2078]
[1755375844139,1.67926,4434.9,4434.8,3.3753]
[1755375844435,1.67926,4434.9,4434.8,3.7654]
[1755375844631,1.67926,4434.9,4434.3,3.3753]
[1755375844632,0.4026,4434.4,4434.3,3.3753]
[1755375844836,1.4705,4434.4,4434.3,4.0246]
[1755375845038,1.4705,4434.4,4434.3,3.6345]
[1755375845241,1.4705,4434.4,4434.3,3.2078]
[1755375845839,1.679408,4434.4,4434.3,3.2078]
[1755375846437,1.033408,4434.4,4434.3,3.7969]
[1755375846739,1.679408,4434.4,4434.3,4.5493]
[1755375847035,1.679408,4434.4,4434.3,3.3753]
[1755375847235,1.679408,4434.4,4434.3,3.2078]
[1755375848234,1.679408,4434.4,4434.3,4.0246]
[1755375849241,1.4705,4434.4,4434.3,4.0246]
[1755375851545,1.4705,4434.4,4434.3,4.2936]
[1755375852039,1.4705,4434.4,4434.3,3.2078]
[1755375853545,1.67944127,4434.4,4434.3,3.2078]
[1755375857344,0.77464127,4434.4,4433.7,3.2078]
[1755375857550,1.4705,4434.1,4434.0,0.8168]
[1755375857750,1.67944127,4434.1,4434.0,0.8168]
[1755375859153,1.67944127,4434.1,4434.0,0.9792]
[1755375861554,1.67944127,4434.1,4434.0,1.3498]
[1755375861754,1.67944127,4434.1,4434.0,1.0861]
[1755375867457,1.67944127,4434.1,4434.0,0.8168]
[1755375870858,1.67944127,4434.1,4434.0,0.5576]
[1755375871857,1.67944127,4434.1,4434.0,0.8222]
[1755375872862,1.67944127,4434.1,4434.0,0.929]
[1755375874757,1.4705,4434.1,4434.0,0.929]
[1755375874959,1.68269542,4434.1,4434.0,1.0929]
[1755375875159,1.68269542,4434.1,4434.0,1.3566]
[1755375875363,0.21219542,4434.1,4434.0,1.3566]
[1755375879567,0.47409542,4434.1,4434.0,1.3566]
[1755375879766,0.72669542,4434.1,4434.0,1.3566]
[1755375881672,0.21219542,4434.1,4434.0,1.3566]
[1755375881860,0.47409542,4434.1,4434.0,1.3566]
[1755375882670,1.06499542,4434.1,4434.0,1.3566]
[1755375882874,1.45619542,4434.1,4434.0,1.3566]
[1755375883067,1.72119542,4434.1,4434.0,1.3566]
[1755375884070,1.72119542,4434.1,4434.0,1.0929]
[1755375884269,0.6033,4433.8,4433.7,3.2078]
[1755375884572,1.72119542,4433.8,4433.7,3.2078]
[1755375893376,0.3514,4433.3,4433.2,3.2078]
[1755375893579,1.72129542,4433.3,4433.2,3.2078]
[1755375895776,0.81839542,4433.3,4432.8,20.624]
[1755375895982,0.6062,4432.9,4432.8,20.624]
[1755375896182,1.72129542,4432.9,4432.8,20.624]
[1755375898380,0.81839542,4432.9,4432.5,3.5778]
[1755375898676,1.5091,4432.6,4432.5,24.3614]
[1755375898880,1.5091,4432.6,4432.5,24.8915]
[1755375899280,1.5091,4432.6,4432.5,25.1403]
[1755375899481,1.5091,4432.6,4432.5,23.8308]
[1755375899673,3.2078,4433.9,4432.5,24.2715]
[1755375899878,1.5091,4433.1,4433.0,4.5173]
[1755375900077,1.32530978,4433.1,4433.0,25.1413]
[1755375900281,1.71100978,4433.1,4433.0,25.1413]
[1755375900481,1.71100978,4433.1,4433.0,24.8925]
[1755375900983,1.71098349,4433.1,4433.0,24.8925]
[1755375901680,1.71098349,4433.1,4433.0,24.7856]
[1755375901884,1.71098349,4433.1,4433.0,3.2078]
[1755375902385,1.71098349,4433.1,4433.0,3.7384]
[1755375902587,1.32528349,4433.1,4433.0,4.2685]
[1755375902882,1.71098349,4433.1,4433.0,4.5173]
[1755375903179,1.71094717,4433.1,4433.0,3.7384]
[1755375903481,1.71094717,4433.1,4433.0,3.996]
[1755375903784,1.71094717,4433.1,4433.0,4.2685]
[1755375903987,1.71094717,4433.1,4433.0,3.2078]
[1755375904283,1.71094717,4433.1,4433.0,3.7384]
[1755375904483,1.71094717,4433.1,4433.0,3.996]
[1755375904675,1.71094717,4433.1,4433.0,4.2685]
[1755375904877,1.71094717,4433.1,4433.0,4.5173]
[1755375905280,1.71094717,4433.1,4433.0,4.2685]
[1755375905480,1.71094717,4433.1,4433.0,3.2078]
[1755375905780,1.5091,4432.6,4432.5,3.2078]
[1755375905983,1.71094717,4432.6,4432.5,3.2078]
[1755375906484,1.71094717,4432.6,4432.3,20.614]
[1755375906685,0.6062,4432.4,4432.3,21.1446]
[1755375906888,1.5091,4432.4,4432.3,21.1446]
[1755375908681,1.5091,4432.4,4432.3,1.0607]
[1755375908883,1.5091,4432.4,4432.3,21.7087]
[1755375909078,1.5091,4432.4,4432.3,1.0607]
[1755375909289,1.5091,4432.4,4432.3,0.9538]
[1755375909488,1.5091,4432.4,4432.3,0.7882]
[1755375909794,1.5091,4432.4,4432.3,0.4182]
[1755375910285,1.5091,4432.4,4432.3,0.7882]
[1755375912192,1.5091,4432.4,4432.3,0.9538]
[1755375912384,1.71090782,4432.4,4432.3,1.0607]
[1755375912585,1.71090782,4432.4,4432.3,21.9505]
[1755375912586,0.20180782,4432.4,4432.3,21.9505]
[1755375912785,0.46420782,4432.4,4432.3,21.9505]
[1755375912989,0.71900782,4432.4,4432.3,21.9505]
[1755375914089,1.07040782,4432.4,4432.3,21.9505]
[1755375914292,1.45610782,4432.4,4432.3,21.9505]
[1755375914894,1.71090782,4432.4,4432.3,21.9505]
[1755375924698,1.71090782,4432.4,4432.3,25.1583]
[1755375925596,1.71090782,4432.4,4432.3,3.2078]
[1755375926507,1.71148607,4432.4,4432.3,3.2078]
[1755375927597,0.71118607,4432.4,4432.3,4.532]
[1755375927900,1.64978607,4432.4,4432.3,4.532]
[1755375930799,1.64978607,4432.4,4432.3,4.2738]
[1755375932302,1.64978607,4432.4,4432.3,3.2078]
[1755375932691,1.64978607,4432.4,4432.3,3.9999]
[1755375932891,1.64978607,4432.4,4432.3,4.2738]
[1755375934495,0.3604,4433.6,4432.3,6.83]
[1755375934692,0.3604,4433.6,4431.6,32.48]
[1755375934693,2.19446237,4433.5,4433.4,0.9011]
[1755375934902,2.19446237,4433.5,4433.4,1.1593]
[1755375935103,1.99271015,4433.5,4433.4,1.1593]
[1755375936208,1.4347,4433.5,4433.4,1.1593]
[1755375938001,0.3604,4434.1,4433.5,0.1064]
[1755375938202,0.9386,4434.1,4433.7,0.195]
[1755375938401,0.9386,4433.8,4433.7,0.3633]
[1755375938598,0.9386,4433.8,4433.7,0.6272]
[1755375938809,1.4347,4433.8,4433.7,0.6272]
[1755375939315,1.4347,4433.8,4433.7,0.9011]
[1755375943114,1.4347,4433.8,4433.7,1.1593]
[1755375943513,1.4347,4433.8,4433.7,0.9011]
[1755375943710,1.4347,4433.8,4433.7,0.7947]
[1755375943915,1.4347,4433.8,4433.7,0.9011]
[1755375944912,1.4347,4433.8,4433.7,1.1593]
[1755375946520,1.63016972,4433.8,4433.7,0.9011]
[1755375947515,1.63016972,4433.8,4433.7,0.7947]
[1755375951318,0.77366972,4433.8,4433.3,3.2078]
[1755375951519,1.4635,4433.5,4433.4,0.8808]
[1755375951721,1.4635,4433.5,4433.4,1.1336]
[1755375960322,0.5165,4433.5,4433.4,1.1336]
[1755375962224,0.8365,4434.1,4434.0,0.1641]
[1755375962525,1.65774656,4434.1,4434.0,0.3601]
[1755375963218,2.21356121,4434.1,4434.0,0.3601]
[1755375963420,2.21366546,4434.1,4434.0,0.1641]
[1755375963620,2.21366546,4434.1,4433.8,0.3031]
[1755375963812,3.2303,4434.5,4433.8,0.3031]
[1755375963813,0.8365,4433.9,4433.8,0.4672]
[1755375964012,1.65785081,4433.9,4433.8,0.3601]
[1755375964417,1.65785081,4433.9,4433.8,0.4121]
[1755375964623,1.65785081,4433.9,4433.8,1.1336]
[1755375965018,1.65785081,4433.9,4433.8,0.7737]
[1755375965221,1.4635,4433.7,4433.6,0.1641]
[1755375965421,1.65785081,4433.7,4433.6,0.1641]
[1755375965620,0.5965,4433.4,4432.8,3.2078]
[1755375965822,1.4635,4432.9,4432.8,3.2078]
[1755375966124,1.65785081,4432.9,4432.8,3.2078]
[1755375966817,0.574,4432.4,4432.3,3.2078]
[1755375967017,1.4635,4431.9,4431.8,3.2078]
[1755375967221,1.65785081,4431.9,4431.8,3.2078]
[1755375971719,0.574,4431.3,4431.2,20.7601]
[1755375971920,1.4635,4431.3,4431.2,21.4752]
[1755375972223,1.4635,4431.3,4431.2,21.728]
[1755375974220,1.4635,4431.3,4431.2,21.4752]
[1755375975026,1.4635,4431.3,4431.2,21.728]
[1755375978326,1.4635,4431.3,4431.2,21.4752]
[1755375979025,1.4635,4431.3,4431.2,21.7302]
[1755375979732,1.4635,4431.3,4431.2,21.4752]
[1755375981035,1.4635,4431.3,4431.2,20.7558]
[1755375981633,1.4635,4431.3,4431.2,20.9517]
[1755375981835,1.4635,4431.3,4431.2,20.596]
[1755375982031,1.4635,4431.3,4431.2,20.7919]
[1755375982335,1.4635,4431.3,4431.2,20.9517]
[1755375982735,1.4635,4431.3,4431.2,21.0586]
[1755375983132,1.4635,4431.3,4431.2,21.4886]
[1755375983534,1.4635,4431.3,4431.2,21.7436]
[1755375985739,1.4635,4431.3,4431.2,21.4886]
[1755375986539,0.4958,4432.0,4431.2,21.3817]
[1755375986740,0.70029688,4431.9,4431.8,1.1476]
[1755375986930,0.5183,4432.7,4431.8,20.601]
[1755375987242,1.0914,4431.7,4431.6,24.9564]
[1755375988340,1.4725,4431.7,4431.6,24.9564]
[1755375994237,1.67987214,4431.7,4431.6,24.9564]
[1755375998144,1.67987214,4431.7,4431.6,24.6994]
[1755375999942,1.29877214,4431.7,4431.6,24.9544]
[1755376000248,1.67987214,4431.7,4431.6,23.8058]
[1755376000545,1.67987214,4431.7,4431.6,24.0017]
[1755376001646,1.67987214,4431.7,4431.6,24.1615]
[1755376001943,1.67987214,4431.7,4431.6,24.6984]
[1755376005743,1.67987214,4431.7,4431.6,24.1615]
[1755376010855,1.67987214,4431.7,4431.6,24.2686]